[Event "Titled Tuesday Blitz May 24 Early 2022"]
[White "Preotu, Razvan"]
[Black "Manukian, Artak"]
[WhiteFideId "2613280"]
[BlackFideId "13301373"]
[WhiteElo "2407"]
[BlackElo "2512"]
[Result "0-1"]
[Round "06"]
[TimeControl "180+1"]
[Date "2022.05.25"]
[WhiteClock "0:00:06"]
[BlackClock "0:00:03"]

1. e4 {[%clk 0:03:00]}  c6 {[%clk 0:02:58]} 2. Nc3 {[%clk 0:02:59]}  d5 {[%clk 0:02:59]} 3. Nf3 {[%clk 0:03:00]}  dxe4 {[%clk 0:02:59]} 4. Nxe4 {[%clk 0:03:00]}  Nf6 {[%clk 0:02:59]} 5. Qe2 {[%clk 0:03:00]}  Nxe4 {[%clk 0:02:59]} 6. Qxe4 {[%clk 0:03:01]}  Nd7 {[%clk 0:02:59]} 7. d4 {[%clk 0:03:01]}  Nf6 {[%clk 0:02:59]} 8. Qf4 {[%clk 0:03:00]}  e6 {[%clk 0:02:58]} 9. Bd3 {[%clk 0:02:47]}  Nd5 {[%clk 0:02:48]} 10. Qg3 {[%clk 0:02:37]}  Qc7 {[%clk 0:02:25]} 11. c4 {[%clk 0:02:21]}  Qxg3 {[%clk 0:02:22]} 12. hxg3 {[%clk 0:02:22]}  Nf6 {[%clk 0:02:08]} 13. Bf4 {[%clk 0:02:10]}  b6 {[%clk 0:02:03]} 14. Ne5 {[%clk 0:01:59]}  Bb7 {[%clk 0:02:02]} 15. O-O-O {[%clk 0:01:53]}  Bd6 {[%clk 0:01:55]} 16. Kc2 {[%clk 0:01:39]}  Ke7 {[%clk 0:01:51]} 17. f3 {[%clk 0:01:09]}  Rad8 {[%clk 0:01:45]} 18. g4 {[%clk 0:01:05]}  h6 {[%clk 0:01:40]} 19. Rhe1 {[%clk 0:00:59]}  Bb4 {[%clk 0:01:22]} 20. Rh1 {[%clk 0:00:57]}  Rxd4 {[%clk 0:01:17]} 21. Be3 {[%clk 0:00:39]}  Rdd8 {[%clk 0:01:17]} 22. g5 {[%clk 0:00:21]}  hxg5 {[%clk 0:01:14]} 23. Bxg5 {[%clk 0:00:22]}  Bd6 {[%clk 0:01:06]} 24. Ng4 {[%clk 0:00:21]}  c5 {[%clk 0:01:00]} 25. a3 {[%clk 0:00:20]}  Bc7 {[%clk 0:00:45]} 26. Be4 {[%clk 0:00:19]}  Rxh1 {[%clk 0:00:37]} 27. Rxh1 {[%clk 0:00:18]}  Bxe4+ {[%clk 0:00:37]} 28. fxe4 {[%clk 0:00:19]}  Rd4 {[%clk 0:00:27]} 29. Re1 {[%clk 0:00:19]}  Rxc4+ {[%clk 0:00:21]} 30. Kb3 {[%clk 0:00:19]}  b5 {[%clk 0:00:20]} 31. Nf2 {[%clk 0:00:07]}  Be5 {[%clk 0:00:16]} 32. Nd3 {[%clk 0:00:07]}  Bd4 {[%clk 0:00:16]} 33. e5 {[%clk 0:00:06]}  a5 {[%clk 0:00:13]} 34. exf6+ {[%clk 0:00:07]}  gxf6 {[%clk 0:00:13]} 35. Be3 {[%clk 0:00:06]}  a4+ {[%clk 0:00:12]} 36. Ka2 {[%clk 0:00:07]}  e5 {[%clk 0:00:11]} 37. Bxd4 {[%clk 0:00:04]}  cxd4 {[%clk 0:00:11]} 38. Kb1 {[%clk 0:00:04]}  Ke6 {[%clk 0:00:10]} 39. g4 {[%clk 0:00:05]}  Kd5 {[%clk 0:00:08]} 40. Nf2 {[%clk 0:00:04]}  Rc6 {[%clk 0:00:06]} 41. Ne4 {[%clk 0:00:04]}  d3 {[%clk 0:00:06]} 42. Nc3+ {[%clk 0:00:04]}  Kd4 {[%clk 0:00:06]} 43. Re4+ {[%clk 0:00:04]}  Kc5 {[%clk 0:00:04]} 44. Kc1 {[%clk 0:00:05]}  Rd6 {[%clk 0:00:02]} 45. Kd2 {[%clk 0:00:05]}  Rd4 {[%clk 0:00:02]} 46. Rxd4 {[%clk 0:00:03]}  exd4 {[%clk 0:00:03]} 47. Ne4+ {[%clk 0:00:03]}  Kc4 {[%clk 0:00:03]} 48. Nxf6 {[%clk 0:00:02]}  Kb3 {[%clk 0:00:03]} 49. Ne4 {[%clk 0:00:02]}  Kxb2 {[%clk 0:00:04]} 50. Nd6 {[%clk 0:00:02]}  Kxa3 {[%clk 0:00:04]} 51. Nxb5+ {[%clk 0:00:03]}  Kb4 {[%clk 0:00:05]} 52. Nxd4 {[%clk 0:00:03]}  Kc4 {[%clk 0:00:03]} 53. Nf3 {[%clk 0:00:02]}  f6 {[%clk 0:00:02]} 54. Ne1 {[%clk 0:00:02]}  a3 {[%clk 0:00:02]} 55. Nxd3 {[%clk 0:00:02]}  a2 {[%clk 0:00:02]} 56. Nb2+ {[%clk 0:00:02]}  Kb3 {[%clk 0:00:01]} 57. Nd3 {[%clk 0:00:03]}  a1=Q {[%clk 0:00:02]} 58. Nc5+ {[%clk 0:00:03]}  Kc4 {[%clk 0:00:02]} 59. Ne4 {[%clk 0:00:04]}  Qd4+ {[%clk 0:00:02]} 60. Ke2 {[%clk 0:00:05]}  Qxe4+ {[%clk 0:00:03]} 61. Kf2 {[%clk 0:00:06]}  Qxg4 {[%clk 0:00:03]} 0-1


[Site "https://www.chess.com"]

[Event "Titled Tuesday Blitz May 24 Early 2022"]
[White "Prokofiev, Valentyn"]
[Black "Maghsoodloo, Parham"]
[WhiteFideId "14160161"]
[BlackFideId "12539929"]
[WhiteElo "2174"]
[BlackElo "2630"]
[Result "0-1"]
[Round "06"]
[TimeControl "180+1"]
[Date "2022.05.24"]
[WhiteClock "0:00:02"]
[BlackClock "0:02:31"]

1. d4 {[%clk 0:01:06]}  Nf6 {[%clk 0:02:58]} 2. c4 {[%clk 0:01:06]}  e6 {[%clk 0:02:59]} 3. Nf3 {[%clk 0:01:06]}  d5 {[%clk 0:02:59]} 4. e3 {[%clk 0:01:06]}  Bb4+ {[%clk 0:02:58]} 5. Nbd2 {[%clk 0:01:05]}  O-O {[%clk 0:02:57]} 6. a3 {[%clk 0:01:05]}  Be7 {[%clk 0:02:57]} 7. b3 {[%clk 0:01:03]}  Nbd7 {[%clk 0:02:57]} 8. Bd3 {[%clk 0:01:03]}  c5 {[%clk 0:02:57]} 9. O-O {[%clk 0:01:02]}  cxd4 {[%clk 0:02:56]} 10. exd4 {[%clk 0:01:03]}  b6 {[%clk 0:02:56]} 11. Bb2 {[%clk 0:01:02]}  Bb7 {[%clk 0:02:56]} 12. Qe2 {[%clk 0:01:02]}  Rc8 {[%clk 0:02:56]} 13. Rac1 {[%clk 0:01:03]}  Rc7 {[%clk 0:02:56]} 14. Rfd1 {[%clk 0:01:01]}  Qa8 {[%clk 0:02:56]} 15. Bb1 {[%clk 0:00:45]}  Rfc8 {[%clk 0:02:55]} 16. h3 {[%clk 0:00:42]}  dxc4 {[%clk 0:02:55]} 17. bxc4 {[%clk 0:00:42]}  Nf8 {[%clk 0:02:53]} 18. Re1 {[%clk 0:00:37]}  Ng6 {[%clk 0:02:52]} 19. d5 {[%clk 0:00:17]}  exd5 {[%clk 0:02:50]} 20. Bxg6 {[%clk 0:00:18]}  hxg6 {[%clk 0:02:50]} 21. Be5 {[%clk 0:00:18]}  Rd7 {[%clk 0:02:49]} 22. cxd5 {[%clk 0:00:17]}  Nxd5 {[%clk 0:02:48]} 23. Rxc8+ {[%clk 0:00:17]}  Qxc8 {[%clk 0:02:48]} 24. Ne4 {[%clk 0:00:14]}  Bxa3 {[%clk 0:02:43]} 25. Nfg5 {[%clk 0:00:05]}  Re7 {[%clk 0:02:37]} 26. f4 {[%clk 0:00:03]}  f6 {[%clk 0:02:36]} 27. Qa2 {[%clk 0:00:02]}  Bc5+ {[%clk 0:02:33]} 28. Nxc5 {[%clk 0:00:02]}  Qxc5+ {[%clk 0:02:33]} 29. Kh2 {[%clk 0:00:03]}  fxg5 {[%clk 0:02:33]} 30. Qa4 {[%clk 0:00:02]}  Nxf4 {[%clk 0:02:31]} 0-1


[Site "https://www.chess.com"]

[Event "Titled Tuesday Blitz May 24 Early 2022"]
[White "Provaznik, Michal"]
[Black "Clawitter, Craig"]
[WhiteFideId "315273"]
[BlackFideId "2023105"]
[WhiteElo "2176"]
[BlackElo "2219"]
[Result "1/2-1/2"]
[Round "06"]
[TimeControl "180+1"]
[Date "2022.05.25"]
[WhiteClock "0:00:33"]
[BlackClock "0:00:14"]

1. b3 {[%clk 0:03:00]}  e5 {[%clk 0:02:58]} 2. Bb2 {[%clk 0:03:01]}  Nc6 {[%clk 0:02:58]} 3. g3 {[%clk 0:03:02]}  Nf6 {[%clk 0:02:58]} 4. Bg2 {[%clk 0:03:02]}  d5 {[%clk 0:02:59]} 5. e3 {[%clk 0:03:02]}  Be6 {[%clk 0:02:58]} 6. Ne2 {[%clk 0:03:03]}  Qd7 {[%clk 0:02:58]} 7. O-O {[%clk 0:03:04]}  Bh3 {[%clk 0:02:58]} 8. f4 {[%clk 0:03:04]}  e4 {[%clk 0:02:52]} 9. d3 {[%clk 0:02:56]}  h5 {[%clk 0:02:43]} 10. Bxf6 {[%clk 0:02:51]}  gxf6 {[%clk 0:02:43]} 11. dxe4 {[%clk 0:02:51]}  Bxg2 {[%clk 0:02:38]} 12. Kxg2 {[%clk 0:02:49]}  O-O-O {[%clk 0:02:32]} 13. exd5 {[%clk 0:02:45]}  h4 {[%clk 0:02:32]} 14. Ng1 {[%clk 0:02:28]}  Bc5 {[%clk 0:02:07]} 15. Qf3 {[%clk 0:02:16]}  Nb4 {[%clk 0:01:59]} 16. Na3 {[%clk 0:02:07]}  Nxd5 {[%clk 0:01:55]} 17. Nc4 {[%clk 0:02:04]}  b5 {[%clk 0:01:47]} 18. e4 {[%clk 0:02:04]}  hxg3 {[%clk 0:01:32]} 19. hxg3 {[%clk 0:02:04]}  bxc4 {[%clk 0:00:48]} 20. exd5 {[%clk 0:02:01]}  Rh6 {[%clk 0:00:20]} 21. d6 {[%clk 0:01:23]}  c6 {[%clk 0:00:20]} 22. Rfe1 {[%clk 0:00:58]}  Rdh8 {[%clk 0:00:19]} 23. Re7 {[%clk 0:00:58]}  Rh2+ {[%clk 0:00:19]} 24. Kf1 {[%clk 0:00:58]}  Qxd6 {[%clk 0:00:17]} 25. Rd1 {[%clk 0:00:47]}  Rf2+ {[%clk 0:00:17]} 26. Qxf2 {[%clk 0:00:44]}  Qxd1+ {[%clk 0:00:17]} 27. Qe1 {[%clk 0:00:45]}  Qxe1+ {[%clk 0:00:17]} 28. Rxe1 {[%clk 0:00:44]}  Rh1 {[%clk 0:00:16]} 29. Kg2 {[%clk 0:00:44]}  Rxg1+ {[%clk 0:00:15]} 30. Rxg1 {[%clk 0:00:45]}  Bxg1 {[%clk 0:00:15]} 31. Kxg1 {[%clk 0:00:46]}  cxb3 {[%clk 0:00:14]} 32. axb3 {[%clk 0:00:45]}  Kd7 {[%clk 0:00:14]} 33. Kf2 {[%clk 0:00:46]}  Kd6 {[%clk 0:00:15]} 34. Ke3 {[%clk 0:00:46]}  Kc5 {[%clk 0:00:15]} 35. c3 {[%clk 0:00:43]}  a5 {[%clk 0:00:15]} 36. Ke4 {[%clk 0:00:42]}  Kb5 {[%clk 0:00:15]} 37. Kf5 {[%clk 0:00:40]}  c5 {[%clk 0:00:15]} 38. Kxf6 {[%clk 0:00:40]}  c4 {[%clk 0:00:15]} 39. bxc4+ {[%clk 0:00:40]}  Kxc4 {[%clk 0:00:16]} 40. Kxf7 {[%clk 0:00:37]}  a4 {[%clk 0:00:17]} 41. g4 {[%clk 0:00:37]}  a3 {[%clk 0:00:17]} 42. g5 {[%clk 0:00:37]}  a2 {[%clk 0:00:18]} 43. g6 {[%clk 0:00:38]}  a1=Q {[%clk 0:00:19]} 44. g7 {[%clk 0:00:38]}  Qa7+ {[%clk 0:00:18]} 45. Kg6 {[%clk 0:00:37]}  Qb6+ {[%clk 0:00:18]} 46. Kh7 {[%clk 0:00:35]}  Qc7 {[%clk 0:00:18]} 47. Kh8 {[%clk 0:00:35]}  Qxf4 {[%clk 0:00:15]} 48. g8=Q+ {[%clk 0:00:35]}  Kxc3 {[%clk 0:00:14]} 49. Qg7+ {[%clk 0:00:33]}  Qd4 {[%clk 0:00:14]} 1/2-1/2


[Site "https://www.chess.com"]

[Event "Titled Tuesday Blitz May 24 Early 2022"]
[White "Reprintsev, Alexander"]
[Black "Kejzar, Petra"]
[WhiteFideId "14100541"]
[BlackFideId "14610213"]
[WhiteElo "2108"]
[BlackElo "2004"]
[Result "1-0"]
[Round "06"]
[TimeControl "180+1"]
[Date "2022.05.25"]
[WhiteClock "0:01:22"]
[BlackClock "0:00:03"]

1. e4 {[%clk 0:02:56]}  c5 {[%clk 0:02:59]} 2. b3 {[%clk 0:02:51]}  Nc6 {[%clk 0:02:55]} 3. Bb2 {[%clk 0:02:51]}  e5 {[%clk 0:02:54]} 4. f4 {[%clk 0:02:50]}  exf4 {[%clk 0:02:52]} 5. Qf3 {[%clk 0:02:47]}  Bd6 {[%clk 0:02:39]} 6. Bxg7 {[%clk 0:02:46]}  Nd4 {[%clk 0:02:29]} 7. Bxd4 {[%clk 0:02:20]}  cxd4 {[%clk 0:02:28]} 8. Ne2 {[%clk 0:02:12]}  Be5 {[%clk 0:02:23]} 9. c3 {[%clk 0:02:08]}  Qh4+ {[%clk 0:02:06]} 10. Kd1 {[%clk 0:01:58]}  dxc3 {[%clk 0:01:57]} 11. d4 {[%clk 0:01:53]}  c2+ {[%clk 0:01:51]} 12. Kxc2 {[%clk 0:01:53]}  d5 {[%clk 0:01:38]} 13. dxe5 {[%clk 0:01:51]}  Bg4 {[%clk 0:01:36]} 14. Qxf4 {[%clk 0:01:48]}  Rc8+ {[%clk 0:01:17]} 15. Kb2 {[%clk 0:01:47]}  Qh5 {[%clk 0:01:07]} 16. Nec3 {[%clk 0:01:42]}  d4 {[%clk 0:01:02]} 17. Bb5+ {[%clk 0:01:35]}  Kf8 {[%clk 0:01:00]} 18. Nd5 {[%clk 0:01:32]}  Be2 {[%clk 0:00:28]} 19. Bxe2 {[%clk 0:01:28]}  Qxe2+ {[%clk 0:00:28]} 20. Nd2 {[%clk 0:01:29]}  d3 {[%clk 0:00:19]} 21. Rac1 {[%clk 0:01:27]}  Rc2+ {[%clk 0:00:13]} 22. Rxc2 {[%clk 0:01:27]}  dxc2 {[%clk 0:00:14]} 23. Rf1 {[%clk 0:01:26]}  f6 {[%clk 0:00:08]} 24. Nxf6 {[%clk 0:01:25]}  Ke7 {[%clk 0:00:07]} 25. Nd5+ {[%clk 0:01:24]}  Kd7 {[%clk 0:00:04]} 26. Qf7+ {[%clk 0:01:23]}  Kc6 {[%clk 0:00:04]} 27. Qc7+ {[%clk 0:01:22]}  Kb5 {[%clk 0:00:04]} 28. a4+ {[%clk 0:01:21]}  Ka6 {[%clk 0:00:03]} 29. Nb4# {[%clk 0:01:22]} 1-0


[Site "https://www.chess.com"]

[Event "Titled Tuesday Blitz May 24 Early 2022"]
[White "Richter, Nils"]
[Black "Pranav, V"]
[WhiteFideId "12990809"]
[BlackFideId "25060783"]
[WhiteElo "2243"]
[BlackElo "2349"]
[Result "0-1"]
[Round "06"]
[TimeControl "180+1"]
[Date "2022.05.25"]
[WhiteClock "0:00:05"]
[BlackClock "0:01:25"]

1. e4 {[%clk 0:03:00]}  e5 {[%clk 0:02:59]} 2. Nf3 {[%clk 0:03:00]}  Nf6 {[%clk 0:02:59]} 3. d4 {[%clk 0:02:58]}  exd4 {[%clk 0:02:59]} 4. e5 {[%clk 0:02:56]}  Ne4 {[%clk 0:02:59]} 5. Qxd4 {[%clk 0:02:55]}  d5 {[%clk 0:02:59]} 6. exd6 {[%clk 0:02:56]}  Nxd6 {[%clk 0:02:58]} 7. Bd3 {[%clk 0:02:54]}  Nc6 {[%clk 0:02:58]} 8. Qf4 {[%clk 0:02:53]}  Be7 {[%clk 0:02:57]} 9. O-O {[%clk 0:02:53]}  O-O {[%clk 0:02:57]} 10. Nc3 {[%clk 0:02:53]}  Be6 {[%clk 0:02:49]} 11. Re1 {[%clk 0:02:49]}  h6 {[%clk 0:02:42]} 12. Be3 {[%clk 0:02:48]}  Bf6 {[%clk 0:02:34]} 13. Bc5 {[%clk 0:02:43]}  Re8 {[%clk 0:02:30]} 14. Bxd6 {[%clk 0:02:35]}  cxd6 {[%clk 0:02:30]} 15. Ne4 {[%clk 0:02:32]}  Bxb2 {[%clk 0:02:27]} 16. Rab1 {[%clk 0:02:31]}  Be5 {[%clk 0:02:27]} 17. Nxe5 {[%clk 0:02:25]}  dxe5 {[%clk 0:02:28]} 18. Qg3 {[%clk 0:02:22]}  Qe7 {[%clk 0:02:18]} 19. h4 {[%clk 0:02:05]}  Bxa2 {[%clk 0:02:13]} 20. Rb5 {[%clk 0:01:56]}  a6 {[%clk 0:02:08]} 21. Rb2 {[%clk 0:01:46]}  Be6 {[%clk 0:02:05]} 22. Rb6 {[%clk 0:01:43]}  Rad8 {[%clk 0:02:04]} 23. Reb1 {[%clk 0:01:42]}  Rd7 {[%clk 0:01:59]} 24. Bxa6 {[%clk 0:01:39]}  bxa6 {[%clk 0:01:50]} 25. Rxc6 {[%clk 0:01:39]}  a5 {[%clk 0:01:49]} 26. Qxe5 {[%clk 0:01:26]}  Bd5 {[%clk 0:01:47]} 27. Nf6+ {[%clk 0:00:49]}  gxf6 {[%clk 0:01:45]} 28. Qg3+ {[%clk 0:00:49]}  Kh8 {[%clk 0:01:45]} 29. Rcb6 {[%clk 0:00:45]}  Rg8 {[%clk 0:01:43]} 30. Rb8 {[%clk 0:00:40]}  Rdd8 {[%clk 0:01:43]} 31. Rxd8 {[%clk 0:00:38]}  Qxd8 {[%clk 0:01:44]} 32. Qf4 {[%clk 0:00:38]}  Rxg2+ {[%clk 0:01:43]} 33. Kf1 {[%clk 0:00:38]}  Rg6 {[%clk 0:01:42]} 34. Rb8 {[%clk 0:00:37]}  Qxb8 {[%clk 0:01:39]} 35. Qxb8+ {[%clk 0:00:38]}  Kg7 {[%clk 0:01:39]} 36. Qb5 {[%clk 0:00:34]}  Bg2+ {[%clk 0:01:37]} 37. Ke1 {[%clk 0:00:34]}  Rg4 {[%clk 0:01:37]} 38. Qxa5 {[%clk 0:00:32]}  Rxh4 {[%clk 0:01:37]} 39. Kd2 {[%clk 0:00:25]}  Rd4+ {[%clk 0:01:36]} 40. Ke3 {[%clk 0:00:24]}  Re4+ {[%clk 0:01:35]} 41. Kd2 {[%clk 0:00:24]}  Re5 {[%clk 0:01:36]} 42. Qa4 {[%clk 0:00:21]}  h5 {[%clk 0:01:36]} 43. c4 {[%clk 0:00:20]}  h4 {[%clk 0:01:35]} 44. c5 {[%clk 0:00:18]}  h3 {[%clk 0:01:36]} 45. c6 {[%clk 0:00:12]}  h2 {[%clk 0:01:32]} 46. Qg4+ {[%clk 0:00:12]}  Rg5 {[%clk 0:01:32]} 47. c7 {[%clk 0:00:04]}  h1=Q {[%clk 0:01:31]} 48. c8=Q {[%clk 0:00:05]}  Rxg4 {[%clk 0:01:24]} 49. Qxg4+ {[%clk 0:00:06]}  Kf8 {[%clk 0:01:25]} 50. Qc8+ {[%clk 0:00:06]}  Ke7 {[%clk 0:01:26]} 51. Qc7+ {[%clk 0:00:06]}  Ke6 {[%clk 0:01:26]} 52. Qc8+ {[%clk 0:00:06]}  Ke5 {[%clk 0:01:26]} 53. Qe8+ {[%clk 0:00:06]}  Kf5 {[%clk 0:01:26]} 54. Qd7+ {[%clk 0:00:06]}  Kg5 {[%clk 0:01:27]} 55. Qb5+ {[%clk 0:00:03]}  Bd5 {[%clk 0:01:26]} 56. Qe8 {[%clk 0:00:03]}  Qe4 {[%clk 0:01:25]} 57. Qg8+ {[%clk 0:00:02]}  Kf5 {[%clk 0:01:25]} 58. Qg3 {[%clk 0:00:02]}  Qf4+ {[%clk 0:01:25]} 59. Ke2 {[%clk 0:00:03]}  Qxg3 {[%clk 0:01:23]} 60. fxg3 {[%clk 0:00:04]}  Kg4 {[%clk 0:01:24]} 61. Kf2 {[%clk 0:00:05]}  f5 {[%clk 0:01:25]} 0-1


[Site "https://www.chess.com"]

[Event "Titled Tuesday Blitz May 24 Early 2022"]
[White "Rodchenkov, Sergey D."]
[Black "Hambleton, Aman"]
[WhiteFideId "4168712"]
[BlackFideId "2606577"]
[WhiteElo "2306"]
[BlackElo "2552"]
[Result "0-1"]
[Round "06"]
[TimeControl "180+1"]
[Date "2022.05.25"]
[WhiteClock "0:01:27"]
[BlackClock "0:00:17"]

1. e4 {[%clk 0:03:00]}  c6 {[%clk 0:02:58]} 2. d4 {[%clk 0:02:56]}  d6 {[%clk 0:02:53]} 3. Nc3 {[%clk 0:02:53]}  e5 {[%clk 0:02:52]} 4. dxe5 {[%clk 0:02:49]}  dxe5 {[%clk 0:02:53]} 5. Qxd8+ {[%clk 0:02:49]}  Kxd8 {[%clk 0:02:54]} 6. Bc4 {[%clk 0:02:49]}  f6 {[%clk 0:02:54]} 7. f4 {[%clk 0:02:47]}  Nd7 {[%clk 0:02:53]} 8. Nf3 {[%clk 0:02:47]}  Bd6 {[%clk 0:02:51]} 9. g3 {[%clk 0:02:45]}  b5 {[%clk 0:02:42]} 10. Bb3 {[%clk 0:02:44]}  a5 {[%clk 0:02:42]} 11. a4 {[%clk 0:02:41]}  b4 {[%clk 0:02:42]} 12. Ne2 {[%clk 0:02:42]}  Kc7 {[%clk 0:02:25]} 13. Be3 {[%clk 0:02:41]}  Ba6 {[%clk 0:02:23]} 14. Neg1 {[%clk 0:02:24]}  Ne7 {[%clk 0:02:06]} 15. O-O-O {[%clk 0:02:23]}  Rhd8 {[%clk 0:01:37]} 16. fxe5 {[%clk 0:02:10]}  Nxe5 {[%clk 0:00:58]} 17. Nxe5 {[%clk 0:02:10]}  Bxe5 {[%clk 0:00:55]} 18. Rxd8 {[%clk 0:02:07]}  Rxd8 {[%clk 0:00:56]} 19. Nf3 {[%clk 0:02:07]}  Ng6 {[%clk 0:00:29]} 20. Nxe5 {[%clk 0:01:46]}  Nxe5 {[%clk 0:00:28]} 21. Rd1 {[%clk 0:01:47]}  Rxd1+ {[%clk 0:00:04]} 22. Kxd1 {[%clk 0:01:47]}  Nd7 {[%clk 0:00:03]} 23. Bg8 {[%clk 0:01:46]}  h6 {[%clk 0:00:03]} 24. b3 {[%clk 0:01:39]}  c5 {[%clk 0:00:01]} 25. Bd5 {[%clk 0:01:38]}  Kd6 {[%clk 0:00:01]} 26. h3 {[%clk 0:01:36]}  Ne5 {[%clk 0:00:02]} 27. Bg8 {[%clk 0:01:31]}  Bc8 {[%clk 0:00:02]} 28. g4 {[%clk 0:01:29]}  h5 {[%clk 0:00:02]} 29. gxh5 {[%clk 0:01:28]}  Bxh3 {[%clk 0:00:03]} 30. Ke1 {[%clk 0:01:17]}  Bg2 {[%clk 0:00:02]} 31. h6 {[%clk 0:01:17]}  gxh6 {[%clk 0:00:02]} 32. Bxh6 {[%clk 0:01:18]}  Bxe4 {[%clk 0:00:02]} 33. Kf2 {[%clk 0:01:19]}  Bxc2 {[%clk 0:00:03]} 34. Bg7 {[%clk 0:01:19]}  Ke7 {[%clk 0:00:02]} 35. Bh6 {[%clk 0:01:17]}  Nc6 {[%clk 0:00:02]} 36. Be3 {[%clk 0:01:17]}  Kd6 {[%clk 0:00:03]} 37. Bf4+ {[%clk 0:01:17]}  Kd7 {[%clk 0:00:02]} 38. Be3 {[%clk 0:01:18]}  Nd4 {[%clk 0:00:02]} 39. Ke1 {[%clk 0:01:19]}  Kd6 {[%clk 0:00:02]} 40. Bh7 {[%clk 0:01:19]}  Bxh7 {[%clk 0:00:02]} 41. Bf4+ {[%clk 0:01:20]}  Kd5 {[%clk 0:00:02]} 42. Be3 {[%clk 0:01:20]}  Bc2 {[%clk 0:00:02]} 43. Bxd4 {[%clk 0:01:21]}  Kxd4 {[%clk 0:00:03]} 44. Kf2 {[%clk 0:01:21]}  Bxb3 {[%clk 0:00:04]} 45. Kg3 {[%clk 0:01:20]}  Bxa4 {[%clk 0:00:05]} 46. Kh3 {[%clk 0:01:21]}  c4 {[%clk 0:00:05]} 47. Kh4 {[%clk 0:01:22]}  c3 {[%clk 0:00:06]} 48. Kh5 {[%clk 0:01:23]}  b3 {[%clk 0:00:07]} 49. Kg6 {[%clk 0:01:23]}  b2 {[%clk 0:00:08]} 50. Kg7 {[%clk 0:01:24]}  c2 {[%clk 0:00:09]} 51. Kf7 {[%clk 0:01:24]}  Kc3 {[%clk 0:00:10]} 52. Kg7 {[%clk 0:01:24]}  Bb5 {[%clk 0:00:11]} 53. Kf7 {[%clk 0:01:25]}  Bd3 {[%clk 0:00:12]} 54. Kg7 {[%clk 0:01:25]}  f5 {[%clk 0:00:13]} 55. Kf7 {[%clk 0:01:26]}  a4 {[%clk 0:00:14]} 56. Kg7 {[%clk 0:01:27]}  a3 {[%clk 0:00:14]} 57. Kf7 {[%clk 0:01:27]}  a2 {[%clk 0:00:15]} 58. Kg7 {[%clk 0:01:27]}  Kd4 {[%clk 0:00:16]} 59. Kf7 {[%clk 0:01:27]}  Ke5 {[%clk 0:00:17]} 0-1


[Site "https://www.chess.com"]

[Event "Titled Tuesday Blitz May 24 Early 2022"]
[White "Ronka, Erik"]
[Black "Soumya, Swaminathan"]
[WhiteFideId "505080"]
[BlackFideId "5016193"]
[WhiteElo "2264"]
[BlackElo "2115"]
[Result "1-0"]
[Round "06"]
[TimeControl "180+1"]
[Date "2022.05.25"]
[WhiteClock "0:01:20"]
[BlackClock "0:00:03"]

1. e4 {[%clk 0:03:00]}  c5 {[%clk 0:02:59]} 2. Nf3 {[%clk 0:03:00]}  Nc6 {[%clk 0:02:59]} 3. d4 {[%clk 0:03:00]}  cxd4 {[%clk 0:03:00]} 4. Nxd4 {[%clk 0:03:01]}  Nf6 {[%clk 0:03:00]} 5. Nc3 {[%clk 0:03:02]}  d6 {[%clk 0:03:00]} 6. Bc4 {[%clk 0:03:01]}  e6 {[%clk 0:03:00]} 7. Be3 {[%clk 0:03:01]}  a6 {[%clk 0:02:59]} 8. Qe2 {[%clk 0:03:01]}  Na5 {[%clk 0:02:59]} 9. Bd3 {[%clk 0:03:00]}  Qc7 {[%clk 0:02:45]} 10. g4 {[%clk 0:02:59]}  b5 {[%clk 0:02:43]} 11. g5 {[%clk 0:02:59]}  Nd7 {[%clk 0:02:38]} 12. O-O {[%clk 0:02:53]}  Be7 {[%clk 0:02:28]} 13. f4 {[%clk 0:02:52]}  Nc5 {[%clk 0:02:18]} 14. f5 {[%clk 0:02:50]}  Bb7 {[%clk 0:01:53]} 15. f6 {[%clk 0:02:48]}  gxf6 {[%clk 0:01:52]} 16. gxf6 {[%clk 0:02:49]}  Rg8+ {[%clk 0:01:50]} 17. Kh1 {[%clk 0:02:45]}  b4 {[%clk 0:01:44]} 18. fxe7 {[%clk 0:02:35]}  bxc3 {[%clk 0:01:42]} 19. Bh6 {[%clk 0:02:30]}  Qxe7 {[%clk 0:01:28]} 20. bxc3 {[%clk 0:02:27]}  Qh4 {[%clk 0:01:03]} 21. Bf4 {[%clk 0:02:27]}  O-O-O {[%clk 0:00:48]} 22. Rab1 {[%clk 0:02:27]}  Qh3 {[%clk 0:00:36]} 23. Rxb7 {[%clk 0:02:24]}  Naxb7 {[%clk 0:00:35]} 24. Bxa6 {[%clk 0:02:15]}  Qxc3 {[%clk 0:00:27]} 25. Nb5 {[%clk 0:02:10]}  Qb4 {[%clk 0:00:20]} 26. Nxd6+ {[%clk 0:02:05]}  Rxd6 {[%clk 0:00:16]} 27. Bxd6 {[%clk 0:02:06]}  Qxe4+ {[%clk 0:00:13]} 28. Qxe4 {[%clk 0:02:06]}  Nxe4 {[%clk 0:00:13]} 29. Be5 {[%clk 0:02:01]}  Rg5 {[%clk 0:00:12]} 30. Bd4 {[%clk 0:01:46]}  Ra5 {[%clk 0:00:10]} 31. Bxb7+ {[%clk 0:01:44]}  Kxb7 {[%clk 0:00:10]} 32. Rxf7+ {[%clk 0:01:45]}  Kc6 {[%clk 0:00:10]} 33. Rxh7 {[%clk 0:01:40]}  Rxa2 {[%clk 0:00:10]} 34. c3 {[%clk 0:01:36]}  Nd2 {[%clk 0:00:05]} 35. Rf7 {[%clk 0:01:25]}  Kd5 {[%clk 0:00:05]} 36. Rf2 {[%clk 0:01:23]}  Ra1+ {[%clk 0:00:04]} 37. Kg2 {[%clk 0:01:23]}  Ne4 {[%clk 0:00:04]} 38. Re2 {[%clk 0:01:22]}  Rc1 {[%clk 0:00:03]} 39. Re3 {[%clk 0:01:22]}  Rc2+ {[%clk 0:00:03]} 40. Kh3 {[%clk 0:01:20]} 1-0


[Site "https://www.chess.com"]